{"text_format":"1","workbook":"xlsx","n_sheets":2,"sheets":["ОБЩИЙ","По типам"],"not_rendered":{"charts":0,"images":0,"macros":1,"external_links":0,"defined_names":1,"comments":0,"pivot_tables":0},"unopened":[],"bounds":{"document_bytes":16777216,"sheet_cells":100000,"rows_first":2000,"rows_last":500,"rows_between":2000,"halvings":0,"cell_chars":16384,"cell_head_chars":4096},"cells_cut":0,"cells_raw":0,"read":"whole","date_system":"1900"}

{"sheet":"ОБЩИЙ","index":0,"n_rows":45,"n_cols":23,"rows_kept":45,"cut":false,"hidden":false,"merged":[]}
[]
["Наимен. подразд.","Станция","Наименование СИ","Тип","Заводской (инвентарный) номер","январь","февраль","март","I квартал","апрель","май","июнь","II квартал","июль","август","сентябрь","III квартал","октябрь","ноябрь","декабрь","IV квартал","Всего откалибровано приборов","Поиск дубликатов"]
[1,2]
["ЭЧ-11","Ставрополь ","Клещи токоизмерительные","DT 266 F","4",null,null,null,null,"изв.7",null,null,null,null,null,null,null,null,null,null,null,null,{"$f":"CONCATENATE(D4,\" \",E4)","v":"DT 266 F 4"}]
["ЭЧ-11","Ставрополь ","Клещи токоизмерительные","М 266 С","5",null,null,null,null,"75",null,null,null,null,null,null,null,null,null,null,null,null,"М 266 С 5"]
["ЭЧ-11","Ставрополь ","Клещи токоизмерительные","Mastech M266","1",null,null,null,null,"72",null,null,null,null,null,null,null,null,null,null,null,null,"Mastech M266 1"]
["ЭЧ-11","Ставрополь ","Клещи токоизмерительные","Mastech M266",2,null,null,null,null,73,null,null,null,null,null,null,null,null,null,null,null,null,"Mastech M266 2"]
["ЭЧ-11","Ставрополь ","Клещи токоизмерительные","Mastech M266",3,null,null,null,null,71,null,null,null,null,null,null,null,null,null,null,null,null,"Mastech M266 3"]
["ЭЧ-11","Ставрополь ","Клещи токоизмерительные","Sturm MM1202",12020095572,null,null,null,null,74,null,null,null,null,null,null,null,null,null,null,null,null,"Sturm MM1202 12020095572"]
["ЭЧ-11","Электрические",{"$f":"COUNTA(C4:C9)","v":6},{"$f":"COUNTA(D4:D9)","v":6},6,0,0,0,{"$f":"COUNTA(F4:H9)","v":0},6,0,0,{"$f":"COUNTA(J4:L9)","v":6},0,0,0,{"$f":"COUNTA(N4:P9)","v":0},0,0,0,{"$f":"COUNTA(R4:T9)","v":0},{"$f":"I10+M10+Q10+U10","v":6}]
["ЭЧ-11","Ставрополь ",{"$f":"SUM(C10)","v":6},{"$f":"SUM(D10)","v":6},6,0,0,0,0,6,0,0,6,0,0,0,0,0,0,0,0,6]
["ЮДОСС","Сочи","Вольтметр","В7-78/1","TW00016602",null,null,null,null,null,null,null,null,null,null,null,null,null,"231п",null,null,null,{"$f":"CONCATENATE(D12,\" \",E12)","v":"В7-78/1 TW00016602"}]
["ЮДОСС","Сочи","Вольтметр","В7-78/1","TW00016609",null,null,null,null,null,null,null,null,null,null,null,null,null,"223п",null,null,null,"В7-78/1 TW00016609"]
["ЮДОСС","Сочи","Вольтметр","В7-78/1","TW00016699",null,null,null,null,null,null,null,null,null,null,null,null,null,"229п",null,null,null,"В7-78/1 TW00016699"]
["ЮДОСС","Сочи","Вольтметр","В7-78/1","TW00016707",null,null,null,null,null,null,null,null,null,null,null,null,null,"230п",null,null,null,"В7-78/1 TW00016707"]
["ЮДОСС","Сочи","Генератор","Г3-123",35002,null,null,null,null,null,null,null,null,null,null,null,null,null,"227п",null,null,null,"Г3-123 35002"]
["ЮДОСС","Сочи","Мультиметр","Agilent 34401A","MY47048264",null,null,null,null,null,null,null,null,null,null,null,null,null,"222п",null,null,null,"Agilent 34401A MY47048264"]
["ЮДОСС","Сочи","Мультиметр","Mastech MY-64",11070046509,null,null,null,null,null,null,null,null,null,null,null,null,null,"221п",null,null,null,"Mastech MY-64 11070046509"]
["ЮДОСС","Сочи","Мультиметр","Mastech MY-64",11070046589,null,null,null,null,null,null,null,null,null,null,null,null,null,"изв.111п",null,null,null,"Mastech MY-64 11070046589"]
["ЮДОСС","Сочи","Мультиметр","Mastech MY-64",11070046594,null,null,null,null,null,null,null,null,null,null,null,null,null,"изв.112п",null,null,null,"Mastech MY-64 11070046594"]
["ЮДОСС","Сочи","Осциллограф","GOS-6031","EK873444",null,null,null,null,null,null,null,null,null,null,null,null,null,"224п",null,null,null,"GOS-6031 EK873444"]
["ЮДОСС","Сочи","Осциллограф","GOS-6031","EL834046",null,null,null,null,null,null,null,null,null,null,null,null,null,"228п",null,null,null,"GOS-6031 EL834046"]
["ЮДОСС","Сочи","Осциллограф","GOS-6031","EL834050",null,null,null,null,null,null,null,null,null,null,null,null,null,"225п",null,null,null,"GOS-6031 EL834050"]
["ЮДОСС","Сочи","Частотомер","Ч3-85/3",203030136,null,null,null,null,null,null,null,null,null,null,null,null,null,"232п",null,null,null,"Ч3-85/3 203030136"]
["ЮДОСС","Сочи","Частотомер","Ч3-85/3",203030141,null,null,null,null,null,null,null,null,null,null,null,null,null,"233п",null,null,null,"Ч3-85/3 203030141"]
["ЮДОСС","Сочи","Частотомер","Ч3-85/3",203030148,null,null,null,null,null,null,null,null,null,null,null,null,null,"226п",null,null,null,"Ч3-85/3 203030148"]
["ЮДОСС","Радио",{"$f":"COUNTA(C12:C26)","v":15},{"$f":"COUNTA(D12:D26)","v":15},15,0,0,0,{"$f":"COUNTA(F12:H26)","v":0},0,0,0,{"$f":"COUNTA(J12:L26)","v":0},0,0,0,{"$f":"COUNTA(N12:P26)","v":0},0,15,0,{"$f":"COUNTA(R12:T26)","v":15},{"$f":"I27+M27+Q27+U27","v":15}]
["ЮДОСС","Сочи",{"$f":"SUM(C27)","v":15},{"$f":"SUM(D27)","v":15},15,0,0,0,0,0,0,0,0,0,0,0,0,0,15,0,15,{"$f":"I28+M28+Q28+U28","v":15}]
[]
["ВСЕГО",null,{"$f":"C28+C11","v":21},{"$f":"D28+D11","v":21},21,0,0,0,0,6,0,0,6,0,0,0,0,0,15,0,15,21]
[]
[null,null,"Вольтметр",null,null,null,null,null,null,{"$f":"SUMPRODUCT(($C$12:$C$26=$C32)*(J$12:J$26<>\"\"))","v":0},{"$f":"SUMPRODUCT(($C$12:$C$26=$C32)*(K$12:K$26<>\"\"))","v":0},0,0,0,0,0,0,0,4,0]
[null,null,"Генератор",null,null,null,null,null,null,{"$f":"SUMPRODUCT(($C$12:$C$26=$C33)*(J$12:J$26<>\"\"))","v":0},0,0,0,0,0,0,0,0,1,0]
[null,null,"Мультиметр",null,null,null,null,null,null,0,0,0,0,0,0,0,0,0,4,0]
[null,null,"Осциллограф",null,null,null,null,null,null,0,0,0,0,0,0,0,0,0,3,0]
[null,null,"Частотомер",null,null,null,null,null,null,0,0,0,0,0,0,0,0,0,3,0]
["ВСЕГО","Радио",{"$f":"C27","v":15},{"$f":"D27","v":15},15,0,0,0,0,0,0,0,0,0,0,0,0,0,15,0,15,15]
[null,null,"Граммометры"]
[null,null,"УКРУП"]
["ВСЕГО","Механические"]
["ВСЕГО","Температурные"]
[null,null,"Клещи токоизмерительные"]
["ВСЕГО","Электрические",{"$f":"C10","v":6},{"$f":"D10","v":6},6,0,0,0,0,6,0,0,6,0,0,0,0,0,0,0,0,6]
[]
["ВСЕГО","ИТОГ (проверка)",{"$f":"C37+C40+C41+C43","v":21},{"$f":"D37+D40+D41+D43","v":21},21,0,0,0,0,6,0,0,6,0,0,0,0,0,15,0,15,21]

{"sheet":"По типам","index":1,"n_rows":26,"n_cols":5,"rows_kept":26,"cut":false,"hidden":false,"merged":[]}
["Тип СИ","Количество"]
["Ампервольтметр",{"$f":"COUNTIF(ОБЩИЙ!C4:C29,\"Ампервольтметр\")","v":0},null,"Механические",{"$f":"B7+B25","v":0}]
["Амперметр",{"$f":"COUNTIF(ОБЩИЙ!C4:C31,\"Амперметр\")","v":0},null,"Радио",{"$f":"B4+B5+B6+B8+B9+B10+B11+B12+B13+B14+B16+B17+B19+B20+B21+B23+B24+B26","v":15}]
["Вольтметр",{"$f":"COUNTIF(ОБЩИЙ!C4:C29,\"Вольтметр\")","v":4},null,"Температурные",{"$f":"B18","v":0}]
["Генератор",{"$f":"COUNTIF(ОБЩИЙ!C4:C29,\"Генератор\")","v":1},null,"Электрические",{"$f":"B2+B3+B15+B22","v":6}]
["Генератор-частотомер",{"$f":"COUNTIF(ОБЩИЙ!C4:C29,\"Генератор-частотомер\")","v":0},null,null,{"$f":"SUM(E2:E5)","v":21}]
["Граммометр",{"$f":"COUNTIF(ОБЩИЙ!C4:C29,\"Граммометр\")","v":0}]
["Избирательный указатель уровня",{"$f":"COUNTIF(ОБЩИЙ!C4:C29,\"Избирательный указатель уровня\")","v":0}]
["Измеритель коэффициента нелинейных искажений",{"$f":"COUNTIF(ОБЩИЙ!C4:C29,\"Измеритель коэффициента нелинейных искажений\")","v":0}]
["Измеритель модуляции",{"$f":"COUNTIF(ОБЩИЙ!C4:C29,\"Измеритель модуляции\")","v":0}]
["Измеритель нелинейных искажений",{"$f":"COUNTIF(ОБЩИЙ!C4:C29,\"Измеритель нелинейных искажений\")","v":0}]
["Измеритель параметров радиостанций",{"$f":"COUNTIF(ОБЩИЙ!C4:C29,\"Измеритель параметров радиостанций\")","v":0}]
["Измеритель параметров реле",{"$f":"COUNTIF(ОБЩИЙ!C4:C29,\"Измеритель параметров реле\")","v":0}]
["Измеритель уровня",{"$f":"COUNTIF(ОБЩИЙ!C4:C29,\"Измеритель уровня\")","v":0}]
["Клещи токоизмерительные",{"$f":"COUNTIF(ОБЩИЙ!C4:C29,\"Клещи токоизмерительные\")","v":6}]
["Мультиметр",{"$f":"COUNTIF(ОБЩИЙ!C4:C29,\"Мультиметр\")","v":4}]
["Осциллограф",{"$f":"COUNTIF(ОБЩИЙ!C4:C29,\"Осциллограф\")","v":3}]
["Пирометр",{"$f":"COUNTIF(ОБЩИЙ!C4:C29,\"Пирометр\")","v":0}]
["Прибор комбинированный",{"$f":"COUNTIF(ОБЩИЙ!C4:C29,\"Прибор комбинированный\")","v":0}]
["Прибор многофункциональный",{"$f":"COUNTIF(ОБЩИЙ!C4:C29,\"Прибор комбинированный\")","v":0}]
["Радиотестер",{"$f":"COUNTIF(ОБЩИЙ!C4:C29,\"Радиотестер\")","v":0}]
["Секундомер электрический",{"$f":"COUNTIF(ОБЩИЙ!C4:C29,\"Секундомер электрический\")","v":0}]
["Указатель уровня",{"$f":"COUNTIF(ОБЩИЙ!C4:C29,\"Указатель уровня\")","v":0}]
["Установка для измерения параметров радиостанций",{"$f":"COUNTIF(ОБЩИЙ!C4:C29,\"Установка для измерения параметров радиостанций\")","v":0}]
["Устройство контроля",{"$f":"COUNTIF(ОБЩИЙ!C4:C29,\"Устройство контроля\")","v":0}]
["Частотомер",{"$f":"COUNTIF(ОБЩИЙ!C4:C29,\"Частотомер\")","v":3}]